Cogmind - Beta 13 @@@ ROGUE MODE // 2024.04.18 @ 22:10:43 Player: double j Result: Destroyed by P-60 Hacker with Shock Rifle Performance ------------- Evolutions (3) 1500 Regions Visited (6) 1200 Robots Destroyed (14) 70 Value Destroyed (515) 515 Prototype IDs (1) 20 Alien Tech Used (0) 0 Bonus (300) 300 TOTAL SCORE: 3605 Bonus ------- Aligned with FarCom 300 Cogmind --------- Core Integrity 0/700 Matter 219/300 Energy 86/100 System Corruption 15% Temperature Cool (0) Movement Core (150) Ox2 Location -7/Factory Parts ------- > --- POWER (2) -------- (None) > --- PROPULSION (3) --- (None) > --- UTILITY (6) ------ Terrain Scan Processor > --- WEAPON (2) ------- Advanced Assault Cannon Remote Datajack > --- INVENTORY (5) ---- Light Ion Engine Gravmag System Coolant Injector Peak State ------------ > --- POWER ------------ Ion Engine > --- PROPULSION ------- Light Treads Light Treads > --- UTILITY ---------- Small Storage Unit Experimental Sensor Array Terrain Scanner Terrain Scan Processor Transport Network Coupler > --- WEAPON ----------- Light Assault Rifle Improved Grenade Launcher > --- INVENTORY -------- Ion Engine Light Ion Engine Coolant Injector Matter Filter ECM Suite [Rating: 22] Favorites ----------- Power Light Ion Engine Engine Light Ion Engine Propulsion Aluminum Leg Treads Light Treads Leg Aluminum Leg Hover Unit Gravmag System Utility Small Storage Unit Device Terrain Scanner Storage Small Storage Unit Processor Terrain Scan Processor Weapon Assault Rifle Energy Gun Shock Rifle Energy Cannon Ion Cannon Ballistic Gun Assault Rifle Ballistic Cannon Advanced Assault Cannon Launcher Improved Grenade Launcher Special Weapon Mining Laser Build | -11 -10 -10 -10 -9 -8 -7 ------- Run | Yrd Mat Min Exi Min Mat Fac Slots Evolved 6 | . . . . . 4 2 Power 1 | . . . . . . 1 Propulsion 1 | . . . . . . 1 Utility 4 | . . . . . 4 . Weapon . | . . . . . . . Parts Attached 30 | 5 3 . . 4 6 12 Power 4 | 1 . . . 1 . 2 Engine 4 | 1 . . . 1 . 2 Core . | . . . . . . . Reactor . | . . . . . . . Propulsion 6 | 2 . . . 1 2 1 Treads 2 | . . . . . 2 . Leg 3 | 2 . . . 1 . . Wheel . | . . . . . . . Hover 1 | . . . . . . 1 Flight . | . . . . . . . Utility 11 | 1 2 . . 1 3 4 Device 8 | . 2 . . 1 1 4 Storage 1 | 1 . . . . . . Processor 2 | . . . . . 2 . Hackware . | . . . . . . . Protection . | . . . . . . . Artifact . | . . . . . . . Weapon 9 | 1 1 . . 1 1 5 Energy Gun 2 | . . . . . . 2 Energy Cannon 1 | . . . . . . 1 Ballistic Gun 2 | 1 . . . 1 . . Ballistic Cannon 1 | . . . . . . 1 Launcher 1 | . . . . . 1 . Special Weapon 2 | . 1 . . . . 1 Impact Weapon . | . . . . . . . Slashing Weapon . | . . . . . . . Piercing Weapon . | . . . . . . . Special Melee Weapon . | . . . . . . . Unidentified Prototypes 1 | . . . . 1 . . Parts Lost 21 | . . . . 1 2 18 Power 3 | . . . . . . 3 Propulsion 5 | . . . . . 2 3 Utility 7 | . . . . . . 7 Weapon 6 | . . . . 1 . 5 Highest Loss Streak 10 | . . . . 1 2 10 To Critical Strikes . | . . . . . . . Average Slot Usage (%) 82 | . 87 100 100 93 72 56 Engine 11 | . 14 14 14 13 9 6 Treads 2 | . . . . . 1 6 Leg 18 | . 28 28 28 28 16 . Device 14 | . 7 14 14 14 18 15 Storage 10 | . 14 14 14 14 9 3 Processor 5 | . . . . . 8 14 Ballistic Gun 10 | . 14 14 14 14 9 2 Special Weapon 6 | . 7 14 14 7 . . Naked Turns . | . . . . . . . Heaviest Build 23 | 10 13 12 12 13 19 23 Greatest Support 40 | 20 20 20 20 20 40 40 Greatest Overweight (x) 7 | 2 . . . . . 7 Average Overweight (x) . | . . . . . . 2 Largest Inventory Capacity 8 | 8 8 8 8 8 8 8 Average Capacity 7 | 7 8 8 8 8 8 6 Most Carried 8 | 4 4 4 4 7 8 6 Average Carried 4 | 2 3 4 4 4 5 4 Final Capacity 8 | 8 8 8 8 8 8 5 Final Carried 6 | 3 4 4 4 6 4 3 Class Distribution -------------------- 74% | Mutant 25% | Skirmisher Dominant Class ---------------- Mutant | -10/Materials Mutant | -10/Mines Mutant | -10/Exiles Skirmisher | -9/Mines Mutant | -8/Materials Mutant | -7/Factory Resources | -11 -10 -10 -10 -9 -8 -7 ----------- Run | Yrd Mat Min Exi Min Mat Fac Matter Collected 478 | 240 . . . 93 20 125 Remotely . | . . . . . . . Salvage Created 289 | . . . . 45 84 160 Parts 22 | . . . . 5 8 9 Haulers Intercepted . | . . . . . . . Recyclers Shooed . | . . . . . . . Parts Field Recycled . | . . . . . . . Retrieved Matter . | . . . . . . . Parts Self-Destructed . | . . . . . . . Prevented . | . . . . . . . Kills | -11 -10 -10 -10 -9 -8 -7 ------- Run | Yrd Mat Min Exi Min Mat Fac Combat Hostiles Destroyed 11 | . . . . 3 4 4 Guns 3 | . . . . 3 . . Cannons 3 | . . . . . . 3 AOE 4 | . . . . . 4 . Classes Destroyed 6 | . . . . 1 4 1 Builder 1 | . . . . . 1 . Tunneler 2 | . . . . . 2 . Swarmer 3 | . . . . 3 . . Grunt 3 | . . . . . 3 . Hunter 1 | . . . . . 1 . Programmer 4 | . . . . . . 4 Best Kill Streak 7 | . . . . 3 7 2 Combat Bots Only 4 | . . . . 3 4 2 Max Kills in Single Turn 4 | . . . . 1 4 1 Gunslinging . | . . . . . . . Exploded 2 | . . . . . 2 . Melee . | . . . . . . . Uniques/NPCs Destroyed . | . . . . . . . Combat | -11 -10 -10 -10 -9 -8 -7 -------- Run | Yrd Mat Min Exi Min Mat Fac Hostile Shots Fired 215 | . 8 . . 20 26 161 Missed 51 | . 3 . . 4 6 38 Damage Taken 2491 | . 59 . . 124 432 1876 Core 828 | . . . . 16 107 705 Absorbed by Shields . | . . . . . . . Core Remaining (%) 91 | 100 . . . 93 80 . Volleys Fired 60 | . 2 . . 6 7 45 Largest 2 | . 1 . . 2 1 1 Hottest 120 | . 100 . . 120 36 60 Shots Fired 61 | . 2 . . 7 7 45 Gun 22 | . . . . 6 . 16 Cannon 25 | . . . . . . 25 Launcher 7 | . . . . . 7 . Special 7 | . 2 . . 1 . 4 Kinetic 14 | . . . . 6 . 8 Thermal 27 | . 2 . . 1 . 24 Explosive 7 | . . . . . 7 . Electromagnetic 9 | . . . . . . 9 Robot Hit Streak 5 | . . . . 4 4 5 Robot Miss Streak 2 | . . . . 2 1 2 Penetration Max . | . . . . . . . Secondary Targets . | . . . . . . . Shots Hit Robots 37 | . . . . 4 4 29 Core Hits 20 | . . . . 3 10 7 Critical Kills 1 | . . . . . . 1 Critical Parts Destroyed . | . . . . . . . Critical Strikes 1 | . . . . . . 1 Meltdown 1 | . . . . . . 1 Melee Attacks . | . . . . . . . Impact . | . . . . . . . Slashing . | . . . . . . . Piercing . | . . . . . . . Sneak Attacks . | . . . . . . . Combat Hostiles . | . . . . . . . Follow-up Attacks . | . . . . . . . Damage Inflicted 1544 | . . . . 47 976 521 Guns 114 | . . . . 47 . 67 Cannons 448 | . . . . . . 448 Explosions 976 | . . . . . 976 . Melee . | . . . . . . . Ramming 6 | . . . . . . 6 Kinetic 100 | . . . . 47 . 53 Thermal 946 | . . . . . 498 448 Explosive 478 | . . . . . 478 . Electromagnetic 14 | . . . . . . 14 Impact . | . . . . . . . Slashing . | . . . . . . . Piercing . | . . . . . . . Highest Corruption 14 | . . . . . . 14 Average Corruption 7 | . . . . . . 7 Corruption Purged . | . . . . . . . Corruption Blocked . | . . . . . . . Effects 17 | . . . . . . 17 Message Errors 4 | . . . . . . 4 Matter Fused 6 | . . . . . . 6 Heat Flow Errors 2 | . . . . . . 2 Energy Discharges 3 | . . . . . . 3 Parts Rejected 1 | . . . . . . 1 Data Loss (minor) 1 | . . . . . . 1 Overload Shots . | . . . . . . . Overflow Damage 152 | . . . . . 144 8 Projectiles 8 | . . . . . . 8 Explosions 144 | . . . . . 144 . Melee . | . . . . . . . Knockbacks . | . . . . . . . Impact . | . . . . . . . Kinetic . | . . . . . . . Secondary . | . . . . . . . Self-Inflicted Damage 116 | . . . . . 116 . Shots 2 | . . . . . 2 . Rammed 6 | . . . . . . 6 Targets Rammed 6 | . . . . . . 6 Kicked . | . . . . . . . Crushed . | . . . . . . . Highest Temperature 236 | . 20 . . 20 5 236 Average Temperature 45 | . 11 . . 11 2 57 Received Heat Transfer 96 | . 33 . . . 63 . Siege Activations . | . . . . . . . Robots Corrupted . | . . . . . . . Combat Hostiles . | . . . . . . . Parts Fried . | . . . . . . . Impact Corruptions . | . . . . . . . Robots Melted 1 | . . . . . . 1 Combat Hostiles 1 | . . . . . . 1 Parts Melted 3 | . . . . . . 3 Heat Transferred 842 | . . . . . 250 592 Parts Sabotaged . | . . . . . . . Parts Stolen . | . . . . . . . Parts Stripped . | . . . . . . . Power Chain Reactions . | . . . . . . . Alert | -11 -10 -10 -10 -9 -8 -7 ------- Run | Yrd Mat Min Exi Min Mat Fac Peak Influence 202 | . 2 . . 61 202 91 Initial 91 | . . . . . 23 91 Average 39 | . . . . 26 58 56 Maximum Alert Level 1 | . . . . . 1 . Low Security (%) 99 | 100 100 100 . 100 96 100 Level 1 . | . . . . . 3 . Level 2 . | . . . . . . . Level 3 . | . . . . . . . Level 4 . | . . . . . . . Level 5 . | . . . . . . . High Security . | . . . . . . . Max Security . | . . . . . . . Squads Dispatched 5 | . 1 . . . 1 3 Investigation 3 | . 1 . . . 1 1 Extermination 2 | . . . . . . 2 Reinforcement . | . . . . . . . Assault . | . . . . . . . Garrison . | . . . . . . . Intercept . | . . . . . . . Searches Triggered . | . . . . . . . Construction Impeded . | . . . . . . . Haulers Reinforced . | . . . . . . . Active Scanning Responses . | . . . . . . . Cargo Convoy Interrupts . | . . . . . . . Stealth | -11 -10 -10 -10 -9 -8 -7 --------- Run | Yrd Mat Min Exi Min Mat Fac Distress Signals . | . . . . . . . Communications Jammed . | . . . . . . . Distress Signals . | . . . . . . . Times Spotted 24 | . 5 . . 3 9 7 Peak Tracking Total 5 | . 5 . . 3 5 3 Tactical Retreats . | . . . . . . . Traps | -11 -10 -10 -10 -9 -8 -7 ------- Run | Yrd Mat Min Exi Min Mat Fac Traps Triggered . | . . . . . . . Indirectly . | . . . . . . . Trap Hack Attempts . | . . . . . . . Triggered . | . . . . . . . Disarmed . | . . . . . . . Reprogrammed . | . . . . . . . Reused . | . . . . . . . Traps Extracted . | . . . . . . . Installed . | . . . . . . . Triggered . | . . . . . . . Machines | -11 -10 -10 -10 -9 -8 -7 ---------- Run | Yrd Mat Min Exi Min Mat Fac Machines Disabled 3 | . . . . . 3 . Max in Single Turn 1 | . . . . . 1 . Machines Repaired . | . . . . . . . Machines Dismantled . | . . . . . . . Machines Sabotaged . | . . . . . . . Overloaded Fab Kills . | . . . . . . . Hacking | -11 -10 -10 -10 -9 -8 -7 --------- Run | Yrd Mat Min Exi Min Mat Fac Machines Accessed 8 | . 1 . 2 . 2 3 Terminals 4 | . 1 . . . 2 1 Fabricators . | . . . . . . . Repair Stations 2 | . . . . . . 2 Recycling Units . | . . . . . . . Scanalyzers . | . . . . . . . Garrison Access . | . . . . . . . Total Hacks 51 | . 2 . 32 . 9 8 Successful 40 | . . . 32 . 5 3 Failed 11 | . 2 . . . 4 5 Catastrophic 4 | . . . . . 1 3 Database Lockouts . | . . . . . . . Manual 3 | . . . 3 . . . Terminals 13 | . 2 . . . 9 2 Fabricators . | . . . . . . . Repair Stations 6 | . . . . . . 6 Recycling Units . | . . . . . . . Scanalyzers . | . . . . . . . Garrison Access . | . . . . . . . Terminal Hacks 38 | . . . 32 . 5 1 Record 33 | . . . 32 . 1 . Scanalyzer Index 1 | . . . . . 1 . Unreport Threat 1 | . . . . . 1 . Locate Traps 1 | . . . . . 1 . Surveillance Status 1 | . . . . . 1 . Recall Investigation 1 | . . . . . . 1 Fabricator Hacks . | . . . . . . . Repair Station Hacks 2 | . . . . . . 2 Scan Component 2 | . . . . . . 2 Recycling Unit Hacks . | . . . . . . . Scanalyzer . | . . . . . . . Garrison Access Hacks . | . . . . . . . Unauthorized Hacks . | . . . . . . . Terminals . | . . . . . . . Fabricators . | . . . . . . . Repair Stations . | . . . . . . . Recycling Units . | . . . . . . . Scanalyzers . | . . . . . . . Garrison Access . | . . . . . . . Data Cores Recovered . | . . . . . . . Used . | . . . . . . . Hacking Detections 6 | . 1 . . . 2 3 Full Trace Events 3 | . 1 . . . 1 1 Feedback Events . | . . . . . . . Feedback Blocked . | . . . . . . . Robot Schematics Acquired . | . . . . . . . Robots Built . | . . . . . . . Authchips . | . . . . . . . Time . | . . . . . . . Total Robot Build Rating . | . . . . . . . Part Schematics Acquired . | . . . . . . . Parts Built . | . . . . . . . Authchips . | . . . . . . . Time . | . . . . . . . Total Part Build Rating . | . . . . . . . Parts Repaired . | . . . . . . . Time . | . . . . . . . Parts Recycled . | . . . . . . . Recycled Matter . | . . . . . . . Retrieved Matter . | . . . . . . . Retrieved Components . | . . . . . . . Parts Scanalyzed . | . . . . . . . Part Schematics Acquired . | . . . . . . . Parts Damaged . | . . . . . . . Bothacking | -11 -10 -10 -10 -9 -8 -7 ------------ Run | Yrd Mat Min Exi Min Mat Fac Used RIF Installer . | . . . . . . . Robots Hacked 1 | . . . . . . 1 Non-combat . | . . . . . . . Combat 1 | . . . . . . 1 Robot Hacks Applied 1 | . . . . . . 1 parse_system 1 | . . . . . . 1 Relay Couplers Released . | . . . . . . . Fabnet Peak Effective % . | . . . . . . . Robots Rewired . | . . . . . . . Allies Hacked . | . . . . . . . Hacks Repelled . | . . . . . . . Allies | -11 -10 -10 -10 -9 -8 -7 -------- Run | Yrd Mat Min Exi Min Mat Fac Total Allies 3 | . . . . 3 . . Largest Group 3 | . . . . 3 . . Highest-Rated Group 40 | . . . . 40 . . Highest-Rated Ally 16 | . . . . 16 . . Total Orders . | . . . . . . . Ally Attacks 10 | . . . . 10 . . Total Damage 33 | . . . . 33 . . Kills 1 | . . . . 1 . . Allies Corrupted . | . . . . . . . Allies Melted . | . . . . . . . Intel | -11 -10 -10 -10 -9 -8 -7 ------- Run | Yrd Mat Min Exi Min Mat Fac Robot Analysis Total . | . . . . . . . Derelict Logs Recovered 1 | . . . . 1 . . Drone Launches . | . . . . . . . Drone Recoveries . | . . . . . . . Exploration | -11 -10 -10 -10 -9 -8 -7 ------------- Run | Yrd Mat Min Exi Min Mat Fac Turns Passed 3145 | 55 177 44 922 758 290 899 Spaces Moved 1959 | 37 136 37 764 554 150 281 Core 143 | 11 . . . . . 132 Treads 159 | . . . . . 16 143 Legs 1651 | 26 136 37 764 554 134 . Wheels . | . . . . . . . Hover 6 | . . . . . . 6 Flight . | . . . . . . . Fastest Speed 50 | 50 120 120 120 120 120 50 Average Speed 133 | 115 120 120 120 120 124 215 Slowest Speed 400 | 150 120 120 120 120 160 400 Overloaded Moves . | . . . . . . . Propulsion Burnouts . | . . . . . . . Robots Hopped . | . . . . . . . Cave-ins Triggered . | . . . . . . . Exploration Rate (%) 30 | 4 31 12 92 52 15 6 Regions Visited 6 Branch Regions 3 Pre-discovered Areas 1 | . . . 1 . . . Known Exits Taken . | . . . . . . . Unknown Exits Taken 6 | 1 1 1 1 1 1 . Scrap Searched . | . . . . . . . Spaces Dug 2 | . 2 . . . . . Terrain Destroyed 40 | . 2 . . 1 37 . Melee . | . . . . . . . Projectile 3 | . 2 . . 1 . . AOE 37 | . . . . . 37 . Terrain Rammed . | . . . . . . . Walls Destroyed . | . . . . . . . Machines Disabled . | . . . . . . . Actions | -11 -10 -10 -10 -9 -8 -7 --------- Run | Yrd Mat Min Exi Min Mat Fac Total 2414 | 49 144 36 769 640 247 529 Wait 331 | . . . 6 68 81 176 Move 1953 | 36 135 36 763 553 149 281 Hop . | . . . . . . . Pick Up 28 | 8 3 . . 5 4 8 Fast Attach 4 | . . . . . . 4 Attach 26 | 5 3 . . 4 6 8 Detach 2 | . 1 . . 1 . . Swap . | . . . . . . . Drop 4 | . . . . 3 . 1 Fire 60 | . 2 . . 6 7 45 Melee . | . . . . . . . Ram 1 | . . . . . . 1 Kick . | . . . . . . . Crush 5 | . . . . . . 5 Escape Stasis . | . . . . . . . Rewire . | . . . . . . . Trap . | . . . . . . . Miscellaneous . | . . . . . . . Route ------- -11/Scrapyard -10/Materials -10/Mines -10/Exiles (discovered 2 exits: [*Min x2]) -9/Mines -8/Materials -7/Factory History --------- Turn | Location | Event 36 | -11/Scrapyard | Discovered new exit (range 14) 56 | -11/Scrapyard | Entered Materials 101 | -10/Materials | Discovered new exit (range 6) 233 | -10/Materials | Entered Mines 272 | -10/Mines | Deemed a non-threat by the Exiles lab entrance 272 | -10/Mines | Discovered new exit (range 5) 277 | -10/Mines | Entered Exiles 298 | -10/Exiles | Discovered new exit (range 14) 314 | -10/Exiles | Build established: Mutant 317 | -10/Exiles | Met 8R-AWN 336 | -10/Exiles | Met EX-HEX 443 | -10/Exiles | Visited The Gauntlet 551 | -10/Exiles | Met EX-DEC 581 | -10/Exiles | Learned location of Zion (-6) 609 | -10/Exiles | Met EX-BIN 635 | -10/Exiles | Aligned with FarCom system 636 | -10/Exiles | Given EX-Vault access code 687 | -10/Exiles | Opened EX-Vault 721 | -10/Exiles | Warned to stay clear of 0b10 Research branches 823 | -10/Exiles | Discovered new exit (range 14) 1199 | -10/Exiles | Entered Mines 1208 | -9/Mines | Learned Materials terminal intel 1213 | -9/Mines | Met a Derelict bent on vengeance 1460 | -9/Mines | Discovered new exit (range 6) 1492 | -9/Mines | Build established: Skirmisher 1537 | -9/Mines | Assisted by bots powering up and referring to "LRC-V3" 1643 | -9/Mines | Lost 3 allies 1741 | -9/Mines | Found a damaged Exp. Sensor Array with a note attached 1743 | -9/Mines | Found Prototype Device 1745 | -9/Mines | Identified Exp. Sensor Array 1918 | -9/Mines | Build established: Mutant 1957 | -9/Mines | Entered Materials 1957 | -8/Materials | Evolved 4 slots: Utility x4 1958 | -8/Materials | Loaded intel: 12 terminal locations 2180 | -8/Materials | Discovered new exit (range 15) 2247 | -8/Materials | Entered Factory 2247 | -7/Factory | Evolved 2 slots: Power x1, Propulsion x1 2490 | -7/Factory | Build established: Skirmisher 2699 | -7/Factory | Lost 7 parts (1p2n2u2w) 2853 | -7/Factory | Build established: Mutant 3026 | -7/Factory | Core integrity fell below 50% 3046 | -7/Factory | System corruption reached 10% 3104 | -7/Factory | Core integrity fell below 20% 3146 | -7/Factory | Destroyed by P-60 Hacker with Shock Rifle Last Messages --------------- P-60 Hacker IFF system glitched. P-60 Hacker repels hacking attempt. Jacked P-60 Hacker... >>parse_system Reading system data... M-28 Smith repairs P-60 Hacker. K-01 Serf collects debris. P-60 Hacker resets M-28 Smith, system corruption cleaned. Shock Rifle destroyed. Jacked P-60 Hacker... Command string: exit No effect. Slammed into K-01 Serf. Destabilizing: System interference. Remote Datajack temporarily disabled. Ion Engine destroyed. Acquired 45 matter. Acquired Adv. Assault Cannon. S%V1OC7UW60DUAWR,MG|%MP Map ----- +----------------------------------------------------+ | ?????????????????????????????????????????????????? | | ?????????????????????????????????????????????????? | | ?????????????????????????????????????????????????? | | ?????????????????????????????????????????????????? | | ?????????????????????????????????????????????????? | | ?????????????????????????????????????????????????? | | ?????????????????????????????????????????????????? | | ?????????????????????????????????????????????????? | | ?????????????????????????????????????????????????? | | ?????????????????????????????????????????????????? | | ?????????????????????????????????????????????????? | | ?????????????????????????????????????????????????? | | ?????????????????????????????????????????????????? | | ?????????????????????????????????????????????????? | | ?????????????????????????????????????????????????? | | ?????????????????????????????????????????????????? | | ??????????????????w??????????????????##########??? | | ?????????????????????????????????????# #??? | | ????????????????????????######?#?????# #??? | | ????????????????????????# #?????# #??? | | ????????????????????????# """ #?????# #??? | | ????????????????????????# """ #?????# #??? | | ????????????????????????+ """ #?????# #??? | | ????????????????????????# "" #?????# #??? | | ?????????????????#??????# "" #?????# [ #??? | | ?????????????????# ?????#@ #?????# #??? | | ??????????########%###### """ ###########+####### | | ??????????# ## """ # | | ??????????# ## """ # ^ | | ??????????# /p| " # ^ ^ ^ | | ??????????# ##% "" # | | ??????????# ## #^ """ """ """ """ | | ??????????# """ ## m% # """ """ %"" """ | | ??????????? ? """ #####+### """ """ """ """ | | ??????????????""" "" """ """ """ | | ????????????? | | ???????????? """ | | ???????????? """ | | ???????????? ?""" | | ??????????????? #########+####################+ | | ??????????????""" ??????????????????????# | | ???????????????"" ??????????????????????# """ | | ????????????????" ???????????????????????# """ | | ???????????????? ???????????????????????# """ """ | | ?????????????????????????????????????????# "R | | ?????????????????????????????????????????# """ | | ?????????????????????????????????????????# """ ! | | ?????????????????????????????????????????# | | ?????????????????????????????????????????######### | | ????????????????????????????????????????????#???#? | +----------------------------------------------------+ Best States ------------- Heat Dissipation 34 Energy Generation 16 Energy Capacity 290 Matter Stores 300 Matter Capacity 300 Sight Range 16 Robot Scan Range 20 Terrain Scan Range 14 Terrain Scan Density 85 ECM Strength 1 Evasion (%) 55 Recoil Reduction 2 Matter Filtering 30 Item Schematics ----------------- None Robot Schematics ------------------ None Fabricated ------------ Nothing Alien Tech Used ----------------- None Achievements -------------- None Challenges ------------ None Game ------ Seed MagneticTacticalBarrier Manual? 0 Play Time 00:33:12 Cumulative 9.3 hours Start 2024.04.18 @ 21:38:09 End 2024.04.18 @ 22:10:43 Sessions 1 Manual Loads 0 Difficulty Rogue Special Mode None Game No. 16 Rogue 16 Adventurer 0 Explorer 0 Win Type - Total 0 Types 0/0/0/0/0/0/0/0/0 Lore% 19 Gallery% 17 Achievement% 14 Wizard Run 0 Options --------- Layout 1 ASCII 0 Keyboard 0 Movement Mouse Keybinds 0 Fullscreen 1 Font 24/Smallcaps Map View 50x35 Zoom Use 0% Tactical HUD 0 Map Filters NONE Filters NONE Steam 1 RUN: a0457467-ed58-4208-af2c-7995ce35d746